lending/lending_fUSD_20250917
["ID","MTS","AMOUNT","RATE_DAILY","PERIOD"]
[385926486,1758136252285,-400.0,0.00022547,2]
[385926488,1758136252295,-400.0,0.00022547,2]
[385926490,1758136252304,-400.0,0.00022547,2]
[385926492,1758136252314,-418.41408801,0.00022547,2]
[385926494,1758136252323,-303.81918552,0.00022547,2]
[385926496,1758136252333,-400.0,0.00022547,2]
[385926498,1758136252343,-400.0,0.00022547,2]
[385926500,1758136252353,-424.54,0.00022547,2]
[385926502,1758136252363,-400.0,0.00022547,2]
[385926504,1758136252372,-400.0,0.00022547,2]
[385926506,1758136252382,-933.74,0.00022547,2]
[385926508,1758136252394,-628.05,0.00022547,2]
[385926511,1758136252408,-400.0,0.00022547,2]
[385926513,1758136252419,-400.0,0.00022547,2]
[385926515,1758136252429,-441.51117987,0.00022547,2]
[385926517,1758136252440,-400.0,0.00022547,2]
[385926519,1758136252450,-465.03,0.00022547,2]
[385926521,1758136252460,-400.83,0.00022547,2]
[385926523,1758136252471,-400.0,0.00022547,2]
[385926525,1758136252483,-400.0,0.00022547,2]
[385926527,1758136252492,-400.0,0.00022547,2]
[385926529,1758136252501,-466.1,0.00022547,2]
[385926531,1758136252513,-400.0,0.00022547,2]
[385926533,1758136252522,-400.0,0.00022547,2]
[385926535,1758136252531,-400.0,0.00022547,2]
[385926537,1758136252541,-400.0,0.00022547,2]
[385926539,1758136252551,-585.96,0.00022547,2]
[385926541,1758136252560,-400.0,0.00022547,2]
[385926543,1758136252569,-400.0,0.00022547,2]
[385926545,1758136252579,-213.67429175,0.00022547,2]
[385926547,1758136252588,-400.0,0.00022547,2]
[385926549,1758136252598,-400.0,0.00022547,2]
[385926551,1758136252607,-493.31,0.00022547,2]
[385926553,1758136252617,-400.0,0.00022547,2]
[385926555,1758136252627,-400.0,0.00022547,2]
[385926557,1758136252638,-907.1,0.00022547,2]
[385926559,1758136252648,-460.97,0.00022547,2]
[385926561,1758136252657,-508.35,0.00022547,2]
[385926563,1758136252667,-400.0,0.00022547,2]
[385926565,1758136252676,-400.0,0.00022547,2]
[385926567,1758136252686,-444.41,0.00022547,2]
[385926569,1758136252696,-400.0,0.00022547,2]
[385926571,1758136252706,-400.0,0.00022547,2]
[385926574,1758136252716,-400.0,0.00022547,2]
[385926576,1758136252726,-583.27,0.00022547,2]
[385926578,1758136252735,-783.48,0.00022547,2]
[385926580,1758136252745,-400.0,0.00022547,2]
[385926582,1758136252755,-416.12,0.00022547,2]
[385926584,1758136252764,-411.93,0.00022547,2]
[385926586,1758136252774,-400.0,0.00022547,2]
[385926588,1758136252784,-400.0,0.00022547,2]
[385926590,1758136252793,-400.0,0.00022547,2]
[385926592,1758136252803,-400.0,0.00022547,2]
[385926594,1758136252813,-400.0,0.00022547,2]
[385926596,1758136252822,-459.69,0.00022547,2]
[385926598,1758136252832,-430.75,0.00022547,2]
[385926600,1758136252842,-505.51,0.00022547,2]
[385926602,1758136252852,-400.0,0.00022547,2]
[385926604,1758136252861,-400.0,0.00022547,2]
[385926606,1758136252871,-400.0,0.00022547,2]
[385926608,1758136252880,-400.0,0.00022547,2]
[385926610,1758136252890,-12634.62,0.00022547,2]
[385926612,1758136252900,-400.0,0.00022547,2]
[385926614,1758136252909,-400.0,0.00022547,2]
[385926616,1758136252919,-400.0,0.00022547,2]
[385926618,1758136252929,-851.6,0.00022547,2]
[385926620,1758136252938,-845.47,0.00022547,2]
[385926622,1758136252947,-411.50830978,0.00022547,2]
[385926624,1758136252958,-400.0,0.00022547,2]
[385926626,1758136252967,-475.45,0.00022547,2]
[385926628,1758136252977,-500.0,0.00022547,2]
[385926630,1758136252986,-820.18,0.00022547,2]
[385926632,1758136252995,-400.0,0.00022547,2]
[385926634,1758136253005,-1710.32,0.00022547,2]
[385926636,1758136253014,-172.85297352,0.00022547,2]
[385926638,1758136253024,-1896.06,0.00022547,2]
[385926640,1758136253033,-151.0,0.00022547,7]
[385926642,1758136253043,-777.7,0.00022547,2]
[385926644,1758136253053,-511.45,0.00022547,2]
[385926646,1758136253062,-1055.91,0.00022547,2]
[385926648,1758136253071,-400.0,0.00022547,2]
[385926650,1758136253081,-476.7792852,0.00022547,2]
[385926652,1758136253091,-3039.52,0.00022547,2]
[385926654,1758136253102,-606.73,0.00022547,2]
[385926656,1758136253111,-586.59,0.00022547,2]
[385926658,1758136253121,-181.019575,0.00022547,7]
[385926660,1758136253131,-181.019575,0.00022547,7]
[385926662,1758136253142,-814.52,0.00022547,2]
[385926664,1758136253152,-400.0,0.00022547,2]
[385926665,1758136253161,-300.227513,0.00022547,7]
[385926666,1758136253171,-181.019575,0.00022547,7]
[385926669,1758136253446,-884.98,0.00022547,2]
[385926670,1758136253471,-300.227513,0.00022547,7]
[385926671,1758136253481,-181.019575,0.00022547,7]
[385926672,1758136253491,-479.7,0.00022547,2]
[385926673,1758136253501,-300.227513,0.00022547,7]
[385926674,1758136253510,-300.227513,0.00022547,7]
[385926675,1758136253520,-459.19,0.00022547,2]
[385926676,1758136253529,-400.0,0.00022547,2]
[385926678,1758136253539,-400.0,0.00022547,2]
[385926680,1758136253548,-400.0,0.00022547,2]
[385926682,1758136253558,-400.0,0.00022547,2]
[385926684,1758136253567,-426.95580394,0.00022547,2]
[385926686,1758136253577,-440.04,0.00022547,2]
[385926688,1758136253586,-404.2,0.00022547,2]
[385926689,1758136253595,-666.29,0.00022547,2]
[385926690,1758136253605,-633.25,0.00022547,2]
[385926691,1758136253614,-400.0,0.00022547,2]
[385926692,1758136253623,-517.35464731,0.00022547,2]
[385926693,1758136253633,-433.4,0.00022547,2]
[385926694,1758136253645,-993.76,0.00022547,2]
[385926695,1758136253654,-528.62,0.00022547,2]
[385926697,1758136253663,-531.47,0.00022547,2]
[385926699,1758136253673,-591.57,0.00022547,2]
[385926701,1758136253683,-466.37,0.00022547,2]
[385926702,1758136253693,-400.0,0.00022547,2]
[385926704,1758136253703,-454.53,0.00022547,2]
[385926705,1758136253712,-400.0,0.00022547,2]
[385926706,1758136253722,-2301.42,0.00022547,2]
[385926707,1758136253732,-400.0,0.00022547,2]
[385926708,1758136253741,-400.0,0.00022547,2]
[385926709,1758136253751,-570.26,0.00022547,2]
[385926710,1758136253760,-1028.27,0.00022547,2]
[385926711,1758136253770,-151.0,0.00022547,7]
[385926712,1758136253780,-400.0,0.00022547,2]
[385926713,1758136253789,-404.19,0.00022547,2]
[385926714,1758136253799,-400.0,0.00022547,2]
[385926715,1758136253809,-400.0,0.00022547,2]
[385926716,1758136253818,-400.0,0.00022547,2]
[385926717,1758136253828,-400.0,0.00022547,2]
[385926718,1758136253837,-410.28475517,0.00022547,2]
[385926719,1758136253847,-2997.36,0.00022547,2]
[385926720,1758136253857,-400.0,0.00022547,2]
[385926721,1758136253867,-400.0,0.00022547,2]
[385926722,1758136253876,-433.76,0.00022547,2]
[385926723,1758136253885,-400.0,0.00022547,2]
[385926724,1758136253897,-1862.36,0.00022547,2]
[385926725,1758136253907,-400.0,0.00022547,2]
[385926726,1758136253916,-400.0,0.00022547,2]
[385926727,1758136253925,-400.0,0.00022547,2]
[385926728,1758136253934,-520.12,0.00022547,2]
[385926729,1758136253944,-400.0,0.00022547,2]
[385926730,1758136253954,-601.08,0.00022547,2]
[385926731,1758136253963,-400.0,0.00022547,2]
[385926732,1758136253973,-467.01,0.00022547,2]
[385926733,1758136253983,-400.0,0.00022547,2]
[385926734,1758136253992,-470.61,0.00022547,2]
[385926735,1758136254001,-522.89959314,0.00022547,2]
[385926736,1758136254012,-400.0,0.00022547,2]
[385926737,1758136254022,-590.68,0.00022547,2]
[385926738,1758136254032,-2362.3,0.00022547,2]
[385926739,1758136254041,-723.81,0.00022547,2]
[385926740,1758136254051,-1622.69,0.00022547,2]
[385926741,1758136254065,-400.0,0.00022547,2]
[385926742,1758136254074,-463.92,0.00022547,2]
[385926743,1758136254083,-400.0,0.00022547,2]
[385926744,1758136254093,-400.0,0.00022547,2]
[385926745,1758136254102,-401.81419477,0.00022547,2]
[385926746,1758136254112,-400.0,0.00022547,2]
[385926747,1758136254121,-400.0,0.00022547,2]
[385926748,1758136254130,-400.0,0.00022547,2]
[385926749,1758136254141,-400.0,0.00022547,2]
[385926750,1758136254150,-804.75,0.00022547,2]
[385926751,1758136254159,-261.74687789,0.00022547,2]
[385926752,1758136254168,-406.65,0.00022547,2]
[385926753,1758136254177,-416.78,0.00022547,2]
[385926754,1758136254186,-686.88,0.00022547,2]
[385926755,1758136254196,-400.0,0.00022547,2]
[385926756,1758136254206,-333.65329816,0.00022547,2]
[385926757,1758136254215,-400.0,0.00022547,2]
[385926758,1758136254225,-400.0,0.00022547,2]
[385926759,1758136254235,-400.0,0.00022547,2]
[385926760,1758136254245,-400.0,0.00022547,2]
[385926761,1758136254254,-1018.96,0.00022547,2]
[385926762,1758136254264,-686.5,0.00022547,2]
[385926763,1758136254273,-400.0,0.00022547,2]
[385926764,1758136254283,-400.0,0.00022547,2]
[385926765,1758136254292,-1503.39,0.00022547,2]
[385926766,1758136254302,-400.0,0.00022547,2]
[385926767,1758136254312,-2500.0,0.0002255,2]
[385926768,1758136254322,-2500.0,0.0002255,2]
[385926769,1758136254331,-2500.0,0.0002255,2]
[385926770,1758136254341,-2500.0,0.0002255,2]
[385926771,1758136254350,-1900.48276875,0.0002255,2]
[385926772,1758136254360,-2000.0,0.0002255,3]
[385926773,1758136254370,-160.0,0.0002255,3]
[385926775,1758136254380,-516.07479255,0.0002255,3]
[385926776,1758136254391,-212.6564977,0.0002255,3]
[385926777,1758136254405,-150.0,0.00022579,4]
[385926778,1758136254415,-151.0,0.00022604,7]
[385926780,1758136254425,-600.0,0.00022658,2]
[385926781,1758136254435,-163.30456687,0.00022722,2]
[385926783,1758136254446,-400.0,0.00022739,2]
[385926784,1758136254456,-582.01,0.00022739,2]
[385926785,1758136254467,-745.68,0.00022739,2]
[385926786,1758136254479,-482.63,0.00022739,2]
[385926787,1758136254490,-400.0,0.00022739,2]
[385926788,1758136254501,-494.82,0.00022739,2]
[385926789,1758136254511,-400.0,0.00022739,2]
[385926790,1758136254521,-400.0,0.00022739,2]
[385926791,1758136254531,-400.0,0.00022739,2]
[385926792,1758136254541,-400.0,0.00022739,2]
[385926793,1758136254551,-400.0,0.00022739,2]
[385926794,1758136254560,-400.0,0.00022739,2]
[385926795,1758136254571,-1751.24,0.00022739,2]
[385926796,1758136254581,-1809.61,0.00022771,2]
[385926797,1758136254590,-500.0,0.00022795,2]
[385926798,1758136254599,-500.0,0.00022795,2]
[385926799,1758136254608,-500.0,0.00022795,2]
[385926800,1758136254618,-500.0,0.00022795,2]
[385926801,1758136254627,-150.0,0.00022795,2]
[385926802,1758136254636,-500.0,0.00022795,2]
[385926803,1758136254647,-605.0,0.00022795,2]
[385926804,1758136254657,-500.0,0.00022795,2]
[385926805,1758136254666,-2442.0,0.00022795,2]
[385926806,1758136254676,-500.0,0.00022809,2]
[385926807,1758136254686,-595.0,0.00022809,2]
[385926808,1758136254695,-500.0,0.00022809,2]
[385926809,1758136254705,-500.0,0.00022809,2]
[385926810,1758136254714,-163.118185,0.00022809,7]
[385926811,1758136254724,-300.227513,0.00022809,7]
[385926812,1758136254733,-300.227513,0.00022809,7]
[385926813,1758136254743,-300.227513,0.00022809,7]
[385926814,1758136254752,-300.227513,0.00022809,7]
[385926815,1758136254762,-151.0,0.00022809,7]
[385926816,1758136254771,-400.0,0.0002282,2]
[385926817,1758136254781,-415.4,0.0002282,2]
[385926818,1758136254790,-400.0,0.0002282,2]
[385926819,1758136254800,-400.0,0.0002282,2]
[385926820,1758136254810,-337.41582333,0.0002282,2]
[385926821,1758136254820,-898.21,0.0002282,2]
[385926822,1758136254830,-401.69,0.0002282,2]
[385926823,1758136254840,-553.35,0.0002282,2]
[385926824,1758136254849,-1177.51,0.0002282,2]
[385926825,1758136254859,-150.0,0.00022821,2]
[385926826,1758136254869,-203.5144394,0.00022821,2]
[385926827,1758136254879,-500.0,0.00022821,2]
[385926828,1758136254890,-500.0,0.00022821,2]
[385926829,1758136254900,-156.43511601,0.00022821,2]
[385926830,1758136254910,-500.0,0.00022821,2]
[385926831,1758136254919,-400.0,0.00022821,2]
[385926832,1758136254929,-507.13229254,0.00022821,2]
[385926833,1758136254938,-152.644779,0.00022821,2]
[385926834,1758136254947,-160.272593,0.00022821,2]
[385926835,1758136254957,-400.0,0.00022821,2]
[385926836,1758136254967,-400.0,0.00022821,2]
[385926837,1758136254976,-400.0,0.00022821,2]
[385926838,1758136254986,-487.3,0.00022821,2]
[385926839,1758136254996,-400.0,0.00022821,2]
[385926840,1758136255005,-502.95107847,0.00022821,2]
[385926841,1758136255015,-400.0,0.00022821,2]
[385926842,1758136255024,-619.0,0.00022821,2]
[385926843,1758136255033,-530.73521704,0.00022821,2]
[385926844,1758136255043,-400.0,0.00022821,2]
[385926845,1758136255052,-737.53,0.00022821,2]
[385926846,1758136255062,-443.81,0.00022821,2]
[385926847,1758136255071,-446.7760492,0.00022821,2]
[385926848,1758136255080,-400.0,0.00022821,2]
[385926849,1758136255090,-493.3,0.00022821,2]
[385926850,1758136255099,-400.0,0.00022821,2]
[385926851,1758136255110,-400.0,0.00022821,2]
[385926852,1758136255119,-620.66,0.00022821,2]
[385926853,1758136255129,-600.69,0.00022821,2]
[385926854,1758136255140,-522.27,0.00022821,2]
[385926855,1758136255150,-400.0,0.00022821,2]
[385926856,1758136255160,-400.0,0.00022821,2]
[385926857,1758136255169,-400.0,0.00022821,2]
[385926858,1758136255179,-409.05,0.00022821,2]
[385926859,1758136255188,-431.09,0.00022821,2]
[385926860,1758136255198,-400.0,0.00022821,2]
[385926861,1758136255207,-400.0,0.00022821,2]
[385926862,1758136255216,-400.0,0.00022821,2]
[385926863,1758136255225,-400.0,0.00022821,2]
[385926864,1758136255235,-508.41,0.00022821,2]
[385926865,1758136255244,-476.0242499,0.00022821,2]
[385926866,1758136255254,-400.0,0.00022821,2]
[385926867,1758136255263,-458.23,0.00022821,2]
[385926868,1758136255272,-1664.17,0.00022821,2]
[385926869,1758136255282,-413.13,0.00022821,2]
[385926870,1758136255291,-296.1453387,0.00022821,2]
[385926871,1758136255301,-400.0,0.00022821,2]
[385926872,1758136255310,-400.0,0.00022821,2]
[385926873,1758136255319,-400.0,0.00022821,2]
[385926874,1758136255329,-530.6,0.00022821,2]
[385926875,1758136255338,-400.0,0.00022821,2]
[385926876,1758136255347,-400.0,0.00022821,2]
[385926877,1758136255356,-400.0,0.00022821,2]
[385926878,1758136255366,-400.0,0.00022821,2]
[385926879,1758136255375,-400.0,0.00022821,2]
[385926880,1758136255384,-362.07892499,0.00022821,2]
[385926881,1758136255396,-400.0,0.00022821,2]
[385926882,1758136255408,-582.21,0.00022821,2]
[385926883,1758136255418,-400.0,0.00022821,2]
[385926884,1758136255427,-400.0,0.00022821,2]
[385926885,1758136255436,-400.0,0.00022821,2]
[385926886,1758136255446,-400.0,0.00022821,2]
[385926887,1758136255455,-400.0,0.00022821,2]
[385926888,1758136255465,-400.0,0.00022821,2]
[385926889,1758136255474,-400.0,0.00022821,2]
[385926890,1758136255484,-400.0,0.00022821,2]
[385926891,1758136255493,-490.63,0.00022821,2]
[385926892,1758136255502,-400.0,0.00022821,2]
[385926893,1758136255512,-530.93,0.00022821,2]
[385926894,1758136255521,-400.0,0.00022821,2]
[385926895,1758136255530,-400.0,0.00022821,2]
[385926896,1758136255539,-400.0,0.00022821,2]
[385926897,1758136255549,-400.0,0.00022821,2]
[385926898,1758136255558,-400.0,0.00022821,2]
[385926899,1758136255568,-400.0,0.00022821,2]
[385926900,1758136255577,-400.0,0.00022821,2]
[385926901,1758136255586,-170.47059946,0.00022821,2]
[385926902,1758136255595,-400.0,0.00022821,2]
[385926903,1758136255605,-436.11,0.00022821,2]
[385926904,1758136255614,-400.0,0.00022821,2]
[385926905,1758136255624,-400.0,0.00022821,2]
[385926906,1758136255634,-400.0,0.00022821,2]
[385926907,1758136255644,-400.0,0.00022821,2]
[385926908,1758136255654,-465.08,0.00022821,2]
[385926909,1758136255663,-400.0,0.00022821,2]
[385926910,1758136255672,-400.0,0.00022821,2]
[385926911,1758136255682,-400.0,0.00022821,2]
[385926912,1758136255691,-536.91893882,0.00022821,2]
[385926913,1758136255701,-400.0,0.00022821,2]
[385926914,1758136255710,-247.06719685,0.00022821,2]
[385926915,1758136255720,-416.56,0.00022821,2]
[385926916,1758136255729,-400.0,0.00022821,2]
[385926917,1758136255738,-400.0,0.00022821,2]
[385926918,1758136255747,-400.0,0.00022821,2]
[385926919,1758136255756,-411.00125325,0.00022821,2]
[385926920,1758136255765,-400.0,0.00022821,2]
[385926921,1758136255775,-547.43,0.00022821,2]
[385926922,1758136255784,-400.0,0.00022821,2]
[385926923,1758136255794,-400.0,0.00022821,2]
[385926924,1758136255872,-400.0,0.00022821,2]
[385926925,1758136255883,-400.0,0.00022821,2]
[385926926,1758136255894,-400.0,0.00022821,2]
[385926927,1758136255903,-588.4,0.00022821,2]
[385926928,1758136255912,-400.0,0.00022821,2]
[385926929,1758136255922,-241.6148757,0.00022821,2]
[385926930,1758136255931,-1198.21,0.00022821,2]
[385926931,1758136255940,-400.0,0.00022821,2]
[385926932,1758136255949,-569.33,0.00022821,2]
[385926933,1758136255958,-400.0,0.00022821,2]
[385926934,1758136255968,-400.0,0.00022821,2]
[385926935,1758136255978,-754.49,0.00022821,2]
[385926936,1758136255988,-439.03,0.00022821,2]
[385926937,1758136255998,-400.0,0.00022821,2]
[385926938,1758136256008,-408.32,0.00022821,2]
[385926939,1758136256017,-520.33,0.00022821,2]
[385926940,1758136256028,-1051.19,0.00022821,2]
[385926941,1758136256038,-151.0,0.00022821,7]
[385926942,1758136256049,-400.0,0.00022821,2]
[385926943,1758136256058,-400.0,0.00022821,2]
[385926944,1758136256068,-732.59,0.00022821,2]
[385926945,1758136256077,-495.89,0.00022821,2]
[385926946,1758136256089,-482.84,0.00022821,2]
[385926947,1758136256098,-802.0,0.00022821,2]
[385926948,1758136256107,-400.0,0.00022821,2]
[385926949,1758136256116,-400.0,0.00022821,2]
[385926950,1758136256125,-400.0,0.00022821,2]
[385926951,1758136256134,-519.33,0.00022821,2]
[385926952,1758136256145,-400.0,0.00022821,2]
[385926953,1758136256154,-400.0,0.00022821,2]
[385926954,1758136256163,-400.0,0.00022821,2]
[385926955,1758136256172,-400.0,0.00022821,2]
[385926956,1758136256182,-400.0,0.00022821,2]
[385926957,1758136256190,-424.54,0.00022821,2]
[385926958,1758136256200,-400.0,0.00022821,2]
[385926959,1758136256209,-400.0,0.00022821,2]
[385926960,1758136256218,-933.74,0.00022821,2]
[385926961,1758136256228,-628.05,0.00022821,2]
[385926962,1758136256237,-400.0,0.00022821,2]
[385926963,1758136256246,-400.0,0.00022821,2]
[385926964,1758136256255,-400.0,0.00022821,2]
[385926965,1758136256264,-465.03,0.00022821,2]
[385926966,1758136256273,-400.83,0.00022821,2]
[385926967,1758136256283,-400.0,0.00022821,2]
[385926968,1758136256292,-492.80313384,0.00022821,2]
[385926969,1758136256301,-400.0,0.00022821,2]
[385926970,1758136256310,-466.1,0.00022821,2]
[385926971,1758136256319,-400.0,0.00022821,2]
[385926972,1758136256328,-400.0,0.00022821,2]
[385926973,1758136256336,-400.0,0.00022821,2]
[385926974,1758136256345,-400.0,0.00022821,2]
[385926975,1758136256354,-585.96,0.00022821,2]
[385926976,1758136256362,-400.0,0.00022821,2]
[385926977,1758136256371,-400.0,0.00022821,2]
[385926978,1758136256380,-177.3784438,0.00022821,2]
[385926979,1758136256389,-400.0,0.00022821,2]
[385926980,1758136256401,-493.31,0.00022821,2]
[385926981,1758136256413,-400.0,0.00022821,2]
[385926982,1758136256423,-400.0,0.00022821,2]
[385926983,1758136256432,-907.1,0.00022821,2]
[385926984,1758136256441,-460.97,0.00022821,2]
[385926985,1758136256453,-508.35,0.00022821,2]
[385926986,1758136256463,-400.0,0.00022821,2]
[385926987,1758136256473,-400.0,0.00022821,2]
[385926988,1758136256482,-444.41,0.00022821,2]
[385926989,1758136256492,-400.0,0.00022821,2]
[385926990,1758136256502,-400.0,0.00022821,2]
[385926991,1758136256511,-400.0,0.00022821,2]
[385926992,1758136256520,-583.27,0.00022821,2]
[385926993,1758136256530,-783.48,0.00022821,2]
[385926994,1758136256539,-416.12,0.00022821,2]
[385926995,1758136256548,-411.93,0.00022821,2]
[385926996,1758136256557,-400.0,0.00022821,2]
[385926997,1758136256566,-400.0,0.00022821,2]
[385926998,1758136256576,-400.0,0.00022821,2]
[385926999,1758136256585,-226.45067731,0.00022821,2]
[385927000,1758136256594,-400.0,0.00022821,2]
[385927001,1758136256603,-459.69,0.00022821,2]
[385927002,1758136256613,-430.75,0.00022821,2]
[385927003,1758136256622,-505.51,0.00022821,2]
[385927004,1758136256632,-400.0,0.00022821,2]
[385927005,1758136256641,-400.0,0.00022821,2]
[385927006,1758136256650,-400.0,0.00022821,2]
[385927007,1758136256659,-400.0,0.00022821,2]
[385927008,1758136256668,-12634.62,0.00022821,2]
[385927009,1758136256677,-400.0,0.00022821,2]
[385927010,1758136256687,-392.55450781,0.00022821,2]
[385927011,1758136256696,-400.0,0.00022821,2]
[385927012,1758136256706,-851.6,0.00022821,2]
[385927013,1758136256716,-845.47,0.00022821,2]
[385927014,1758136256726,-400.0,0.00022821,2]
[385927015,1758136256735,-475.45,0.00022821,2]
[385927016,1758136256744,-500.0,0.00022821,2]
[385927017,1758136256755,-820.18,0.00022821,2]
[385927018,1758136256764,-1710.32,0.00022821,2]
[385927019,1758136256774,-400.0,0.00022821,2]
[385927020,1758136256784,-1896.06,0.00022821,2]
[385927021,1758136256794,-777.7,0.00022821,2]
[385927022,1758136256804,-511.45,0.00022821,2]
[385927023,1758136256814,-1055.91,0.00022821,2]
[385927024,1758136256824,-400.0,0.00022821,2]
[385927025,1758136256834,-606.73,0.00022821,2]
[385927026,1758136256845,-586.59,0.00022821,2]
[385927027,1758136256855,-181.019575,0.00022821,7]
[385927028,1758136256865,-3039.52,0.00022821,2]
[385927029,1758136256875,-181.019575,0.00022821,7]
[385927030,1758136256886,-814.52,0.00022821,2]
[385927031,1758136256898,-400.0,0.00022821,2]
[385927032,1758136256908,-181.019575,0.00022821,7]
[385927033,1758136256919,-884.98,0.00022821,2]
[385927034,1758136256929,-181.019575,0.00022821,7]
[385927035,1758136256938,-479.7,0.00022821,2]
[385927036,1758136256948,-459.19,0.00022821,2]
[385927037,1758136256959,-349.36669601,0.00022821,2]
[385927038,1758136256969,-400.0,0.00022821,2]
[385927039,1758136256979,-429.51338012,0.00022821,2]
[385927040,1758136256989,-400.0,0.00022821,2]
[385927041,1758136256999,-440.04,0.00022821,2]
[385927042,1758136257009,-404.2,0.00022821,2]
[385927043,1758136257019,-666.29,0.00022821,2]
[385927044,1758136257029,-633.25,0.00022821,2]
[385927045,1758136257038,-400.0,0.00022821,2]
[385927046,1758136257048,-433.4,0.00022821,2]
[385927047,1758136257059,-993.76,0.00022821,2]
[385927048,1758136257069,-528.62,0.00022821,2]
[385927049,1758136257078,-531.47,0.00022821,2]
[385927050,1758136257088,-591.57,0.00022821,2]
[385927051,1758136257098,-466.37,0.00022821,2]
[385927052,1758136257107,-400.0,0.00022821,2]
[385927053,1758136257117,-454.53,0.00022821,2]
[385927054,1758136257127,-400.0,0.00022821,2]
[385927055,1758136257137,-2301.42,0.00022821,2]
[385927056,1758136257148,-400.0,0.00022821,2]
[385927057,1758136257158,-400.0,0.00022821,2]
[385927058,1758136257168,-570.26,0.00022821,2]
[385927059,1758136257178,-1028.27,0.00022821,2]
[385927060,1758136257188,-400.0,0.00022821,2]
[385927061,1758136257199,-404.19,0.00022821,2]
[385927062,1758136257209,-400.0,0.00022821,2]
[385927063,1758136257218,-400.0,0.00022821,2]
[385927064,1758136257228,-400.0,0.00022821,2]
[385927065,1758136257238,-400.0,0.00022821,2]
[385927066,1758136257248,-2997.36,0.00022821,2]
[385927067,1758136257258,-400.0,0.00022821,2]
[385927068,1758136257268,-400.0,0.00022821,2]
[385927069,1758136257277,-1862.36,0.00022821,2]
[385927070,1758136257288,-400.0,0.00022821,2]
[385927071,1758136257297,-400.0,0.00022821,2]
[385927072,1758136257307,-433.76,0.00022821,2]
[385927073,1758136257317,-400.0,0.00022821,2]
[385927074,1758136257326,-601.08,0.00022821,2]
[385927075,1758136257336,-520.12,0.00022821,2]
[385927076,1758136257346,-400.0,0.00022821,2]
[385927077,1758136257358,-467.01,0.00022821,2]
[385927078,1758136257368,-400.0,0.00022821,2]
[385927079,1758136257377,-470.61,0.00022821,2]
[385927080,1758136257387,-400.0,0.00022821,2]
[385927081,1758136257399,-590.68,0.00022821,2]
[385927082,1758136257410,-723.81,0.00022821,2]
[385927083,1758136257421,-1622.69,0.00022821,2]
[385927084,1758136257431,-2362.3,0.00022821,2]
[385927085,1758136257441,-400.0,0.00022821,2]
[385927086,1758136257450,-463.92,0.00022821,2]
[385927087,1758136257460,-400.0,0.00022821,2]
[385927088,1758136257470,-400.0,0.00022821,2]
[385927089,1758136257480,-400.0,0.00022821,2]
[385927090,1758136257490,-400.0,0.00022821,2]